bitfinex-derivatives/quotes_SOLF0:USTF0_20250404
["timestamp","ask_amount","ask_price","bid_price","bid_amount"]
[1743752196442,0.05463551,117.63,117.62,8.5043]
[1743752196644,0.05463551,117.63,117.62,39.7443]
[1743752197442,0.05463551,117.63,117.62,54.78245464]
[1743752197642,3.551e-05,117.63,117.62,54.78245464]
[1743752197844,15.03815464,117.72,117.62,46.27815464]
[1743752198050,15.03815464,117.72,117.64,15.03815464]
[1743752198249,6.6071,117.73,117.66,15.03815464]
[1743752198548,37.8471,117.73,117.66,15.03815464]
[1743752198942,6.6071,117.73,117.66,15.03815464]
[1743752199143,0.05802949,117.71,117.68,15.10072665]
[1743752199448,0.05802949,117.71,117.7,23.53665464]
[1743752199652,0.05802949,117.71,117.7,15.03815464]
[1743752200047,0.05802949,117.71,117.7,23.53665464]
[1743752200248,47.20291392,117.78,117.7,23.53815464]
[1743752200449,47.20291392,117.78,117.75,15.03815464]
[1743752200951,47.20291392,117.78,117.76,31.24]
[1743752201341,47.25940121,117.78,117.76,31.30196369]
[1743752201546,47.25940121,117.78,117.73,15.03815464]
[1743752201547,47.25940121,117.78,117.73,31.22]
[1743752202051,8.4946,117.76,117.73,31.22]
[1743752202546,8.4957,117.74,117.66,1.1159]
[1743752202751,46.25815464,117.75,117.65,31.22]
[1743752202953,2.1754,117.74,117.66,15.03815464]
[1743752203142,8.4968,117.73,117.68,23.53795464]
[1743752203346,2.1754,117.74,117.68,15.03815464]
[1743752203748,8.4975,117.72,117.68,15.03815464]
[1743752203950,31.28163631,117.72,117.7,0.05577523]
[1743752204551,39.77883631,117.72,117.7,0.05577523]
[1743752204853,31.28163631,117.72,117.7,0.05577523]
[1743752206353,39.77883631,117.72,117.7,0.05577523]
[1743752206856,31.28163631,117.72,117.7,0.05577523]
[1743752207054,0.06163631,117.72,117.7,15.09392987]
[1743752207553,0.06163631,117.72,117.7,23.59202987]
[1743752208249,0.06163631,117.72,117.7,15.09392987]
[1743752209051,8.55903631,117.72,117.7,0.05577523]
[1743752209251,0.06163631,117.72,117.7,0.05577523]
[1743752209854,0.06163631,117.72,117.7,15.09392987]
[1743752210153,0.06163631,117.72,117.7,23.59222987]
[1743752211053,0.06163631,117.72,117.71,8.4978]
[1743752211557,0.06163631,117.72,117.7,23.59202987]
[1743752211857,0.06163631,117.72,117.7,15.09392987]
[1743752212359,0.06163631,117.72,117.7,23.59192987]
[1743752213661,0.06163631,117.72,117.7,15.09392987]
[1743752214259,0.06163631,117.72,117.7,23.59202987]
[1743752214559,0.06163631,117.72,117.7,15.09392987]
[1743752214859,0.06163631,117.72,117.7,23.59212987]
[1743752215060,0.06163631,117.72,117.7,15.09392987]
[1743752215462,0.06163631,117.72,117.71,8.4978]
[1743752215960,0.06163631,117.72,117.7,23.59202987]
[1743752218961,0.06163631,117.72,117.71,8.4978]
[1743752220560,4.4682,117.78,117.74,8.4955]
[1743752220763,4.4682,117.78,117.74,23.53365464]
[1743752220964,4.4682,117.78,117.74,15.03815464]
[1743752221260,4.4682,117.78,117.72,15.03815464]
[1743752221660,0.05441192,117.76,117.74,0.06524505]
[1743752221853,0.05441192,117.76,117.7,15.03815464]
[1743752222464,8.4969,117.73,117.7,15.03815464]
[1743752222659,31.2,117.74,117.7,15.03815464]
[1743752222963,0.060472,117.73,117.71,0.0615442]
[1743752223157,0.060472,117.73,117.68,23.53775464]
[1743752223158,2.373372,117.73,117.68,23.53775464]
[1743752223468,2.373372,117.73,117.66,15.03815464]
[1743752223765,2.3129,117.73,117.66,15.03815464]
[1743752224365,0.06448125,117.71,117.68,0.05607135]
[1743752224567,31.26448125,117.71,117.68,0.05607135]
[1743752225069,8.4985,117.7,117.68,0.05607135]
[1743752225467,31.26448125,117.71,117.68,0.05607135]
[1743752225862,31.26448125,117.71,117.67,8.5003]
[1743752226167,0.06448125,117.71,117.66,15.03815464]
[1743752226666,0.06448125,117.71,117.69,8.4992]
[1743752227062,0.06448125,117.71,117.69,8.56131127]
[1743752227265,0.06448125,117.71,117.69,0.06211127]
[1743752227266,8.56278125,117.71,117.69,0.06211127]
[1743752228069,0.06448125,117.71,117.69,0.06211127]
[1743752228770,8.4985,117.7,117.69,0.06211127]
[1743752229471,8.56278125,117.71,117.69,0.06211127]
[1743752229873,0.06448125,117.71,117.69,0.06211127]
[1743752231171,31.26448125,117.71,117.69,0.06211127]
[1743752231372,33.59248125,117.71,117.69,0.06211127]
[1743752231575,8.4985,117.7,117.69,0.06211127]
[1743752232672,8.4993,117.69,117.67,8.5001]
[1743752232866,8.4993,117.69,117.66,23.53915464]
[1743752233066,8.5,117.68,117.64,46.23815464]
[1743752233272,48.56615464,117.71,117.64,15.03815464]
[1743752233467,48.56615464,117.71,117.63,8.5033]
[1743752233669,8.5025,117.65,117.62,15.03815464]
[1743752234070,8.5025,117.65,117.63,8.5032]
[1743752234270,0.05814126,117.65,117.63,8.5032]
[1743752234672,0.05814126,117.65,117.59,15.03815464]
[1743752234975,31.2,117.64,117.58,15.03815464]
[1743752235175,31.2,117.64,117.53,794.6749619]
[1743752235176,31.2,117.64,117.56,46.23815464]
[1743752235374,8.5061,117.6,117.56,46.23815464]
[1743752235568,8.5061,117.6,117.57,8.5076]
[1743752235769,31.2,117.64,117.56,46.23815464]
[1743752235977,0.05508173,117.6,117.56,15.03815464]
[1743752236678,0.05508173,117.6,117.59,8.5065]
[1743752237280,31.2,117.64,117.61,8.5044]
[1743752237479,2.3657,117.65,117.6,15.03815464]
[1743752238076,2.3657,117.65,117.61,8.5044]
[1743752238281,10.8679,117.65,117.61,8.5044]
[1743752238476,0.06254514,117.64,117.62,0.05508174]
[1743752240681,8.56594514,117.64,117.62,0.05508174]
[1743752240883,0.06254514,117.64,117.62,0.05508174]
[1743752241178,8.56554514,117.64,117.62,0.05508174]
[1743752242278,0.06254514,117.64,117.62,0.05508174]
[1743752242585,8.56574514,117.64,117.62,0.05508174]
[1743752243081,0.06254514,117.64,117.62,0.05508174]
[1743752243277,0.06254514,117.64,117.63,8.5036]
[1743752243575,0.06254514,117.64,117.62,0.05508174]
[1743752243981,0.06254514,117.64,117.62,8.55898174]
[1743752244181,0.06254514,117.64,117.62,0.05508174]
[1743752244581,0.06254514,117.64,117.63,8.5036]
[1743752248581,0.06254514,117.64,117.62,46.31323638]
[1743752248981,0.06254514,117.64,117.63,8.5036]
[1743752252590,0.06254514,117.64,117.62,54.81713638]
[1743752252986,0.06254514,117.64,117.62,46.31323638]
[1743752253185,0.06254514,117.64,117.62,0.05508174]
[1743752253383,31.22,117.63,117.62,0.05508174]
[1743752253588,8.5047,117.62,117.59,8.5062]
[1743752253882,8.5047,117.62,117.58,15.03815464]
[1743752254088,8.5047,117.62,117.59,8.5063]
[1743752254289,33.3806,117.63,117.58,15.03815464]
[1743752254488,2.1606,117.63,117.6,15.03815464]
[1743752254791,0.05413114,117.62,117.61,8.505]
[1743752255882,0.05413114,117.62,117.6,23.54345464]
[1743752256283,0.05413114,117.62,117.6,15.03815464]
[1743752256485,0.05413114,117.62,117.61,8.505]
[1743752256790,0.05413114,117.62,117.59,31.22]
[1743752256986,0.05413114,117.62,117.59,46.25815464]
[1743752257690,0.05413114,117.62,117.59,15.03815464]
[1743752257890,8.55913114,117.62,117.59,15.03815464]
[1743752258091,0.05413114,117.62,117.59,15.03815464]
[1743752258590,8.55873114,117.62,117.59,15.03815464]
[1743752258785,8.55873114,117.62,117.6,8.5054]
[1743752259093,0.05413114,117.62,117.57,46.25815464]
[1743752260187,0.05413114,117.62,117.61,8.505]
[1743752261689,0.05413114,117.62,117.6,8.5053]
[1743752262291,8.55883114,117.62,117.6,8.5053]
[1743752263092,8.505,117.61,117.59,8.5062]
[1743752263390,0.05413114,117.62,117.59,8.5062]
[1743752263689,8.55893114,117.62,117.59,8.5062]
[1743752263890,0.05413114,117.62,117.59,8.5062]
[1743752264590,8.55903114,117.62,117.59,8.5062]
[1743752264988,8.55903114,117.62,117.6,8.5057]
[1743752265292,0.05413114,117.62,117.61,15.03815464]
[1743752265487,0.05413114,117.62,117.61,23.54315464]
[1743752266994,0.05413114,117.62,117.6,8.5053]
[1743752267184,0.05413114,117.62,117.59,15.03815464]
[1743752267390,8.5053,117.61,117.59,15.03815464]
[1743752267589,8.5053,117.61,117.59,23.54455464]
[1743752268296,8.55883114,117.62,117.59,23.54455464]
[1743752268492,8.55883114,117.62,117.6,8.5057]
[1743752268793,8.55883114,117.62,117.59,15.03815464]
[1743752269291,0.05413114,117.62,117.59,15.03815464]
[1743752269596,0.05413114,117.62,117.61,8.505]
[1743752270196,0.05413114,117.62,117.6,8.5054]
[1743752270889,0.05413114,117.62,117.61,8.505]
[1743752271289,0.05413114,117.62,117.59,15.03815464]
[1743752271796,8.5054,117.61,117.59,15.03815464]
[1743752271997,0.05413114,117.62,117.58,8.5069]
[1743752272298,8.5068,117.59,117.57,46.25815464]
[1743752272494,31.22,117.62,117.57,23.54565464]
[1743752272696,0.05962154,117.59,117.57,15.03815464]
[1743752273193,0.05962154,117.59,117.58,8.5072]
[1743752273789,0.05962154,117.59,117.55,15.03815464]
[1743752274597,8.56632154,117.59,117.57,8.5076]
[1743752274998,8.56632154,117.59,117.55,15.03815464]
[1743752275195,0.05962154,117.59,117.57,8.5076]
[1743752275399,0.05962154,117.59,117.55,15.03815464]
[1743752275594,0.05962154,117.59,117.56,8.508]
[1743752275794,8.56642154,117.59,117.55,15.03815464]
[1743752276193,8.56642154,117.59,117.57,8.5074]
[1743752276498,0.05962154,117.59,117.55,15.03815464]
[1743752276697,0.05962154,117.59,117.57,8.5076]
[1743752276893,8.56652154,117.59,117.57,8.5076]
[1743752277397,0.05962154,117.59,117.57,8.5075]
[1743752277795,0.05962154,117.59,117.55,15.03815464]
[1743752278295,0.05962154,117.59,117.57,15.03815464]
[1743752278495,0.05962154,117.59,117.55,15.03815464]
[1743752278998,8.56652154,117.59,117.57,8.5079]
[1743752279297,0.05962154,117.59,117.55,15.03815464]
[1743752279594,0.05962154,117.59,117.58,8.5072]
[1743752279998,0.05962154,117.59,117.55,15.03815464]
[1743752280701,0.05962154,117.59,117.58,8.5072]
[1743752281900,0.05962154,117.59,117.57,23.54565464]
[1743752282096,0.05962154,117.59,117.57,15.03815464]
[1743752282601,0.05962154,117.59,117.58,8.5072]
[1743752282999,6.8254,117.64,117.57,15.03815464]
[1743752283203,8.5024,117.65,117.62,8.5043]
[1743752283701,8.5015,117.66,117.63,8.5034]
[1743752284201,8.55892066,117.66,117.63,8.55857706]
[1743752284402,0.05742066,117.66,117.63,8.55857706]
[1743752285203,8.55912066,117.66,117.63,8.55857706]
[1743752285900,0.05742066,117.66,117.64,8.5027]
[1743752286996,0.05742066,117.66,117.63,15.0933317]
[1743752287403,8.55892066,117.66,117.63,15.0933317]
[1743752287704,8.55892066,117.66,117.64,8.5025]
[1743752288001,0.05742066,117.66,117.63,15.0933317]
[1743752289504,0.05742066,117.66,117.65,23.54025464]
[1743752289705,4.537,117.7,117.65,15.03815464]
[1743752289897,2.2283,117.7,117.65,15.03815464]
[1743752290506,39.7182,117.71,117.65,15.03815464]
[1743752290707,8.4975,117.72,117.67,15.03815464]
[1743752291006,0.05385898,117.69,117.67,15.09868553]
[1743752292107,0.05385898,117.69,117.67,0.06053089]
[1743752292406,8.5,117.68,117.67,0.06053089]
[1743752292813,0.05385898,117.69,117.67,0.06053089]
[1743752294007,0.05385898,117.69,117.67,8.56083089]
[1743752294611,0.05385898,117.69,117.67,31.28053089]
[1743752295111,0.05385898,117.69,117.68,8.5]
[1743752296610,2.3609,117.73,117.7,8.4979]
[1743752296807,46.25815464,117.76,117.7,8.4979]
[1743752296808,15.03815464,117.8,117.71,15.03815464]
[1743752297006,6.6746,117.79,117.71,15.03815464]
[1743752297208,8.4938,117.77,117.74,8.4955]
[1743752297407,6.6746,117.79,117.71,15.03815464]
[1743752297610,15.03815464,117.78,117.71,15.03815464]
[1743752297908,0.05428991,117.76,117.69,46.25815464]
[1743752298109,0.05428991,117.76,117.73,0.06079661]
[1743752298408,15.03815464,117.74,117.66,46.25815464]
[1743752298607,35.5952,117.73,117.66,46.25815464]
[1743752298810,35.5952,117.73,117.67,8.5001]
[1743752299009,35.5952,117.73,117.66,15.03815464]
[1743752299210,35.5952,117.73,117.64,46.25815464]
[1743752299409,8.56383177,117.7,117.67,0.05533473]
[1743752299812,0.06483177,117.7,117.67,0.05533473]
[1743752300509,8.4999,117.69,117.67,0.05533473]
[1743752300812,0.06483177,117.7,117.67,0.05533473]
[1743752301012,8.56373177,117.7,117.67,0.05533473]
[1743752301208,0.06483177,117.7,117.67,0.05533473]
[1743752301512,8.4993,117.69,117.67,0.05533473]
[1743752301711,0.06483177,117.7,117.67,0.05533473]
[1743752302313,8.56403177,117.7,117.67,0.05533473]
[1743752302513,0.06483177,117.7,117.67,0.05533473]
[1743752302814,8.4998,117.69,117.67,0.05533473]
[1743752303107,0.06483177,117.7,117.67,0.05533473]
[1743752303313,8.5,117.68,117.67,0.05533473]
[1743752304313,46.30298641,117.7,117.62,15.03815464]
[1743752304514,46.23815464,117.7,117.62,46.23815464]
[1743752304814,8.5018,117.66,117.62,46.23815464]
[1743752305014,46.23815464,117.7,117.62,46.23815464]
[1743752305416,33.4212,117.72,117.64,15.03815464]
[1743752305614,0.05836541,117.67,117.66,15.03815464]
[1743752306013,8.4988,117.7,117.66,15.03815464]
[1743752306316,0.06120153,117.68,117.66,15.03815464]
[1743752312624,4.3752,117.73,117.66,15.03815464]
[1743752312825,8.4979,117.71,117.68,15.03815464]
[1743752313729,0.05489358,117.71,117.68,15.10227582]
[1743752314225,8.55309358,117.71,117.68,15.10227582]
[1743752317526,0.05489358,117.71,117.68,15.10227582]
[1743752317826,0.05489358,117.71,117.68,46.30227582]
[1743752318428,15.03815464,117.78,117.7,15.03815464]
[1743752318627,31.2,117.77,117.7,15.03815464]
[1743752318827,8.496,117.74,117.7,15.03815464]
[1743752319425,8.4953,117.75,117.7,15.03815464]
[1743752319719,0.05567558,117.73,117.71,0.0578013]
[1743752320530,8.4971,117.72,117.71,0.0578013]
[1743752321631,8.55247558,117.73,117.71,0.0578013]
[1743752321830,0.05567558,117.73,117.71,0.0578013]
[1743752322229,8.4971,117.72,117.71,0.0578013]
[1743752322929,0.05567558,117.73,117.71,0.0578013]
[1743752324232,8.55237558,117.73,117.71,0.0578013]
[1743752324832,0.05567558,117.73,117.71,0.0578013]
[1743752325434,8.55217558,117.73,117.71,0.0578013]
[1743752327234,0.05567558,117.73,117.71,0.0578013]
[1743752327634,8.55207558,117.73,117.71,0.0578013]
[1743752328631,0.05567558,117.73,117.71,0.0578013]
[1743752328831,0.05567558,117.73,117.71,31.2578013]
[1743752330538,0.05567558,117.73,117.72,15.03815464]
[1743752339746,0.05567558,117.73,117.72,9.56989643]
[1743752341048,0.05567558,117.73,117.71,31.2578013]
[1743752341348,0.05567558,117.73,117.72,9.56989643]
[1743752341949,0.05567558,117.73,117.71,9.62769773]
[1743752342444,8.4971,117.72,117.71,0.0578013]
[1743752343046,0.05567558,117.73,117.64,846.5772]
[1743752343347,16.33049643,117.74,117.7,9.56989643]
[1743752343748,8.4985,117.71,117.68,14.96472518]
[1743752344149,8.56237059,117.71,117.68,15.02113214]
[1743752344349,8.4986,117.7,117.68,15.02113214]
[1743752344653,0.06387059,117.71,117.68,0.05640696]
[1743752345656,8.4988,117.7,117.68,0.05640696]
[1743752345952,0.06387059,117.71,117.68,0.05640696]
[1743752346344,8.499,117.7,117.68,0.05640696]
[1743752346661,0.06387059,117.71,117.68,0.05640696]
[1743752346955,8.4992,117.69,117.68,0.05640696]
[1743752347858,8.4988,117.7,117.68,0.05640696]
[1743752348159,0.06387059,117.71,117.68,0.05640696]
[1743752348350,8.56197059,117.71,117.68,0.05640696]
[1743752348551,0.06387059,117.71,117.68,0.05640696]
[1743752348958,8.499,117.7,117.68,0.05640696]
[1743752349658,0.06387059,117.71,117.68,0.05640696]
[1743752350260,8.499,117.7,117.68,0.05640696]
[1743752351363,0.06387059,117.71,117.68,15.02113214]
[1743752351859,8.4992,117.7,117.68,15.02113214]
[1743752352561,0.06387059,117.71,117.68,0.05640696]
[1743752352751,0.06387059,117.71,117.64,14.96472518]
[1743752352956,14.96472518,117.7,117.62,46.14472518]
[1743752353263,35.682,117.69,117.62,46.14472518]
[1743752353561,8.5017,117.66,117.62,14.96472518]
[1743752353859,0.05842418,117.65,117.63,0.05665669]
[1743752357960,4.502,117.69,117.64,46.16472518]
[1743752358160,4.502,117.69,117.66,14.96472518]
[1743752358360,13.0017,117.69,117.66,14.96472518]
[1743752359157,13.05660616,117.69,117.66,15.02489277]
[1743752359964,8.5,117.68,117.66,15.02489277]
[1743752361263,13.05670616,117.69,117.66,15.02489277]
[1743752362660,4.55690616,117.69,117.66,15.02489277]
[1743752362864,8.5,117.68,117.66,15.02489277]
[1743752363064,4.55690616,117.69,117.66,0.06016759]
[1743752363661,4.55690616,117.69,117.66,9.64344656]
[1743752364367,8.5002,117.68,117.67,9.58327897]
[1743752364567,4.55690616,117.69,117.67,9.58327897]
[1743752364771,4.55690616,117.69,117.68,9.58327897]
[1743752365066,13.05650616,117.69,117.68,9.58327897]
[1743752365566,4.55690616,117.69,117.66,0.06016759]
[1743752365766,4.55690616,117.69,117.66,9.64344656]
[1743752366564,4.55690616,117.69,117.67,9.58327897]
[1743752367368,13.05650616,117.69,117.67,9.58327897]
[1743752368871,8.5,117.68,117.67,9.58327897]
[1743752369275,4.55690616,117.69,117.67,9.58327897]
[1743752369573,13.05650616,117.69,117.67,9.58327897]
[1743752370670,8.5,117.68,117.67,9.58327897]
[1743752373373,13.05660616,117.69,117.67,9.58327897]
[1743752373573,4.55690616,117.69,117.67,9.58327897]
[1743752374478,8.5,117.68,117.67,9.58327897]
[1743752375474,8.5,117.68,117.66,0.06016759]
[1743752375670,8.5,117.68,117.67,9.58327897]
[1743752375872,13.05650616,117.69,117.67,9.58327897]
[1743752376071,10.86880616,117.69,117.68,9.58327897]
[1743752380481,8.5005,117.68,117.67,9.58327897]
[1743752381284,8.5007,117.67,117.66,9.64344656]
[1743752383493,8.5003,117.68,117.66,9.64344656]
[1743752383792,2.36920616,117.69,117.66,9.64344656]
[1743752384193,8.5,117.68,117.66,9.64344656]
[1743752384392,2.36920616,117.69,117.66,9.64344656]
[1743752384792,8.5007,117.67,117.66,0.06016759]
[1743752387798,9.58327897,117.67,117.61,9.58327897]
[1743752388093,11.90987897,117.66,117.61,9.58327897]
[1743752388292,31.2,117.65,117.61,9.58327897]
[1743752388494,31.2,117.65,117.56,288.3933619]
[1743752388790,0.06162909,117.62,117.59,0.05491328]
[1743752388994,0.06162909,117.62,117.59,9.63819225]
[1743752389194,31.26162909,117.62,117.6,9.58327897]
[1743752389391,8.5053,117.61,117.59,0.05491328]
[1743752389594,8.5053,117.61,117.6,9.58327897]
[1743752396302,0.06162909,117.62,117.6,9.58327897]
[1743752396500,0.06162909,117.62,117.61,9.58327897]
[1743752397201,0.06162909,117.62,117.6,9.58327897]
[1743752397401,0.06162909,117.62,117.61,9.58327897]
[1743752397797,8.56592909,117.62,117.61,9.58327897]
[1743752398997,8.56592909,117.62,117.59,0.05491328]
[1743752399301,8.5053,117.61,117.6,9.58327897]
[1743752400598,8.5057,117.6,117.59,9.63819225]
[1743752400803,31.26162909,117.62,117.59,9.63819225]
[1743752401001,31.26162909,117.62,117.6,9.58327897]
[1743752401202,8.5057,117.61,117.6,9.58327897]
[1743752402508,31.26162909,117.62,117.59,9.63819225]
[1743752403099,31.26162909,117.62,117.59,0.05491328]
[1743752403696,8.5057,117.6,117.59,0.05491328]
[1743752407107,8.5057,117.6,117.59,9.63819225]
[1743752407309,8.5057,117.6,117.59,0.05491328]
[1743752408308,8.5057,117.6,117.59,9.63819225]
[1743752410410,8.5057,117.6,117.59,0.05491328]
[1743752414012,8.5057,117.6,117.59,9.63819225]
[1743752417415,8.5057,117.6,117.59,0.05491328]
[1743752417609,8.5057,117.6,117.59,9.63819225]
[1743752418811,2.30382909,117.62,117.59,9.63819225]
[1743752419015,0.06162909,117.62,117.61,9.58327897]
[1743752420410,8.56592909,117.62,117.61,9.58327897]
[1743752421413,0.06162909,117.62,117.61,9.58327897]
[1743752421712,8.56592909,117.62,117.61,9.58327897]
[1743752422015,0.06162909,117.62,117.6,9.58327897]
[1743752422213,8.505,117.61,117.6,9.58327897]
[1743752422510,0.06162909,117.62,117.59,0.05491328]
[1743752422716,0.06162909,117.62,117.59,9.63819225]
[1743752422904,8.5055,117.61,117.59,9.63819225]
[1743752423108,8.5055,117.61,117.6,9.58327897]
[1743752423514,8.56622909,117.62,117.6,9.58327897]
[1743752423715,8.56622909,117.62,117.61,9.58327897]
[1743752424713,8.5056,117.61,117.59,0.05491328]
[1743752424912,8.5056,117.61,117.6,9.58327897]
[1743752426316,0.06162909,117.62,117.6,9.58327897]
[1743752426816,8.56632909,117.62,117.6,9.58327897]
[1743752428118,8.505,117.61,117.6,9.58327897]
[1743752428319,0.06162909,117.62,117.6,9.58327897]
[1743752429020,8.505,117.61,117.6,9.58327897]
[1743752429416,0.06162909,117.62,117.6,9.58327897]
[1743752429821,8.505,117.61,117.6,9.58327897]
[1743752430216,0.06162909,117.62,117.6,9.58327897]
[1743752430519,8.56622909,117.62,117.6,9.58327897]
[1743752430719,0.06162909,117.62,117.61,9.58327897]
[1743752431920,0.06162909,117.62,117.6,31.2]
[1743752432122,0.06162909,117.62,117.61,9.58327897]
[1743752440830,0.06162909,117.62,117.61,18.08827897]
[1743752441328,0.06162909,117.62,117.61,9.58327897]
[1743752444731,0.06162909,117.62,117.61,18.08827897]
[1743752446132,0.06162909,117.62,117.61,9.58327897]
[1743752448630,0.06162909,117.62,117.52,398.08217238]
[1743752448631,8.5108,117.53,117.52,398.08217238]
[1743752448937,49.29407897,117.53,117.52,147.9351912]
[1743752449235,49.29407897,117.53,117.52,23.11989249]
[1743752449236,57.79407897,117.53,117.52,23.11989249]
[1743752449631,26.59407897,117.53,117.52,23.11989249]
[1743752449831,57.79407897,117.53,117.52,23.11989249]
[1743752450137,57.79407897,117.53,117.52,9.249e-05]
[1743752451138,402.26329144,117.53,117.42,9.58327897]
[1743752451330,402.26329144,117.53,117.31,17.0534]
[1743752451331,9.58327897,117.45,117.4,9.58327897]
[1743752451527,40.78327897,117.44,117.31,356.0]
[1743752451732,31.2,117.44,117.36,23.56748292]
[1743752452035,0.05824271,117.39,117.36,15.04498292]
[1743752452236,504.64498292,117.48,117.36,15.04498292]
[1743752452237,31.2,117.42,117.38,15.04498292]
[1743752452442,31.2,117.43,117.4,15.04498292]
[1743752452729,11.73334507,117.47,117.41,8.5195]
[1743752452935,31.2,117.46,117.41,8.5195]
[1743752453135,11.73334507,117.47,117.4,15.04498292]
[1743752453439,0.05575642,117.45,117.42,15.09919923]
[1743752453839,0.05575642,117.45,117.42,23.61759923]
[1743752454234,0.05575642,117.45,117.42,15.09919923]
[1743752455837,0.05575642,117.45,117.42,23.61779923]
[1743752456939,0.05575642,117.45,117.42,15.09919923]
[1743752457542,0.05575642,117.45,117.42,23.61749923]
[1743752458536,0.05575642,117.45,117.43,8.5179]
[1743752458849,0.05575642,117.45,117.42,15.09919923]
[1743752459738,0.05575642,117.45,117.43,8.5176]
[1743752462341,0.05575642,117.45,117.44,8.5173]
[1743752463136,0.05575642,117.45,117.44,23.56228292]
[1743752463341,11.73334507,117.47,117.46,8.5156]
[1743752464339,31.22,117.49,117.46,8.5156]
[1743752464539,0.0560401,117.48,117.45,2.25740255]
[1743752465542,0.0560401,117.48,117.45,17.30238547]
[1743752465944,0.0560401,117.48,117.46,8.5159]
[1743752466144,0.0560401,117.48,117.45,17.30238547]
[1743752466544,0.0560401,117.48,117.46,8.5155]
[1743752466744,0.0560401,117.48,117.45,17.30238547]
[1743752467045,0.0560401,117.48,117.45,25.81848547]
[1743752467447,0.0560401,117.48,117.45,10.77350255]
[1743752467647,0.0560401,117.48,117.46,8.5157]
[1743752467944,0.0560401,117.48,117.45,2.25740255]
[1743752469048,0.0560401,117.48,117.46,8.5159]
[1743752469243,0.0560401,117.48,117.45,2.25740255]
[1743752469746,0.0560401,117.48,117.46,8.5156]
[1743752470444,8.5704401,117.48,117.45,8.57590255]
[1743752471045,0.0560401,117.48,117.45,8.57590255]
[1743752471451,0.0560401,117.48,117.46,8.5157]
[1743752473251,0.0560401,117.48,117.44,9.61867765]
[1743752473452,0.0560401,117.48,117.46,9.61867765]
[1743752473751,0.0560401,117.48,117.47,8.5151]
[1743752474252,11.66760983,117.48,117.46,9.61867765]
[1743752474452,11.66760983,117.48,117.46,9.67297423]
[1743752474752,11.66760983,117.48,117.47,8.5151]
[1743752475156,0.0560401,117.48,117.47,8.5151]
[1743752475450,0.0560401,117.48,117.46,9.61867765]
[1743752475849,0.0560401,117.48,117.47,8.5151]
[1743752476151,0.0560401,117.48,117.45,9.61867765]
[1743752476352,0.0560401,117.48,117.47,8.5151]
[1743752476853,11.61156973,117.49,117.47,9.61867765]
[1743752477056,11.61156973,117.49,117.48,18.13307765]
[1743752477650,127.72726703,117.5,117.49,8.5137]
[1743752477852,127.72726703,117.5,117.49,9.61867765]
[1743752478352,124.16936703,117.5,117.49,18.13237765]
[1743752478853,139.39574607,117.51,117.5,8.513]
[1743752479154,139.39574607,117.51,117.5,18.13167765]
[1743752479351,0.05690931,117.51,117.5,18.13167765]
[1743752481453,0.05690931,117.51,117.5,9.61867765]
[1743752482553,0.05690931,117.51,117.48,9.67471775]
[1743752482754,8.513,117.5,117.48,9.67471775]
[1743752482956,31.27690931,117.51,117.48,9.67471775]
[1743752483657,39.78930931,117.51,117.48,18.18871775]
[1743752484553,31.27690931,117.51,117.48,9.67471775]
[1743752484857,8.513,117.5,117.48,0.0560401]
[1743752485055,40.89558696,117.51,117.48,0.0560401]
[1743752485256,8.5137,117.49,117.48,0.0560401]
[1743752485459,9.61867765,117.49,117.43,9.61867765]
[1743752485654,8.5162,117.46,117.43,18.13637765]
[1743752485851,31.22,117.48,117.44,9.61867765]
[1743752486159,8.5154,117.47,117.44,18.13527765]
[1743752486363,31.22,117.48,117.45,9.61867765]
[1743752486961,31.28279867,117.48,117.47,9.61867765]
[1743752487158,0.06279867,117.48,117.47,9.61867765]
[1743752487466,0.06279867,117.48,117.47,18.13377765]
[1743752487655,0.06279867,117.48,117.47,8.5151]
[1743752498275,0.06279867,117.48,117.46,10.7582]
[1743752498465,0.06279867,117.48,117.46,2.2428]
[1743752498874,0.06279867,117.48,117.47,8.5151]
[1743752504481,0.06279867,117.48,117.46,8.5154]
[1743752504677,0.06279867,117.48,117.43,46.2422196]
[1743752504980,0.06279867,117.48,117.46,8.5154]
[1743752506378,8.57719867,117.48,117.46,8.5154]
[1743752507080,8.5152,117.47,117.43,15.0222196]
[1743752507281,0.06279867,117.48,117.43,15.0222196]
[1743752507681,0.06279867,117.48,117.45,9.6172184]
[1743752507982,0.06279867,117.48,117.46,9.6172184]
[1743752508484,0.06279867,117.48,117.45,9.6172184]
[1743752509183,8.57749867,117.48,117.46,8.5156]
[1743752509384,0.06279867,117.48,117.46,9.6172184]
[1743752509587,0.06279867,117.48,117.47,9.6172184]
[1743752509778,0.06279867,117.48,117.47,18.1323184]